bitfinex/quotes_SOLUSD_20250310
["timestamp","ask_amount","ask_price","bid_price","bid_amount"]
[1741593155834,0.03,128.1,128.09,85.91492935]
[1741593156264,0.03,128.1,128.09,24.74242587]
[1741593156555,0.03,128.1,128.07,81.41]
[1741593156757,0.03,128.1,128.07,96.70312587]
[1741593156953,0.03,128.1,128.07,81.41]
[1741593157155,0.03,128.1,128.07,96.70312587]
[1741593157545,0.03,128.1,128.07,81.41]
[1741593158061,0.03,128.1,128.07,89.2181]
[1741593158363,0.03,128.1,128.07,96.70312587]
[1741593158558,0.17216157,128.1,128.07,96.70312587]
[1741593159056,0.03,128.1,128.07,96.70312587]
[1741593160150,0.03,128.1,128.07,104.51122587]
[1741593160761,0.03,128.1,128.07,23.10122587]
[1741593161359,0.03,128.1,128.07,15.29312587]
[1741593161555,0.03,128.1,128.06,89.79532587]
[1741593161757,0.03,128.1,128.06,16.79532587]
[1741593162572,0.03,128.1,128.07,15.29312587]
[1741593163383,0.03,128.1,128.07,23.10122587]
[1741593164484,0.03,128.1,128.06,16.79532587]
[1741593164648,0.03,128.1,128.06,24.60382587]
[1741593165268,0.03,128.1,128.07,15.29312587]
[1741593166144,0.03,128.1,128.06,24.60382587]
[1741593167649,0.03,128.1,128.07,23.10092587]
[1741593171559,0.03,128.1,128.06,9.3107]
[1741593171869,0.17216157,128.1,128.06,9.3107]
[1741593173674,0.17216157,128.1,128.06,24.60382587]
[1741593173872,0.03,128.1,128.07,15.29312587]
[1741593175166,0.03,128.1,128.07,23.10082587]
[1741593176782,0.17216157,128.1,128.06,9.3108]
[1741593177100,0.17216157,128.1,128.06,7.8086]
[1741593179180,0.17216157,128.1,128.06,7.8716]
[1741593180289,0.17216157,128.1,128.06,15.35612587]
[1741593180698,0.17216157,128.1,128.07,15.29312587]
[1741593181695,0.03,128.1,128.07,15.29312587]
[1741593181902,0.03,128.1,128.09,15.29312587]
[1741593182112,0.03,128.1,128.08,15.29312587]
[1741593182887,0.03,128.1,128.09,7.807]
[1741593183094,0.03,128.1,128.09,23.10012587]
[1741593183860,0.03,128.1,128.09,29.92012587]
[1741593185485,0.0001,128.13,128.12,20.0]
[1741593185788,0.0001,128.13,128.12,35.29312587]
[1741593186291,0.0001,128.13,128.12,53.94277473]
[1741593188412,0.0001,128.13,128.12,61.74787473]
[1741593188870,0.14216157,128.19,128.15,15.29312587]
[1741593189470,0.14216157,128.19,128.16,15.29312587]
[1741593189684,15.57744901,128.21,128.16,15.29312587]
[1741593190258,0.14216157,128.21,128.18,15.29312587]
[1741593190560,0.14216157,128.21,128.17,15.29312587]
[1741593191880,0.14216157,128.21,128.18,15.29312587]
[1741593192306,0.14216157,128.21,128.19,15.29312587]
[1741593192489,0.03,128.22,128.19,23.09372587]
[1741593193083,0.03,128.22,128.19,42.59602587]
[1741593193390,0.03,128.22,128.2,15.29312587]
[1741593194206,0.03,128.22,128.19,23.09372587]
[1741593194591,0.03,128.22,128.2,15.29312587]
[1741593195888,0.03,128.22,128.21,15.29312587]
[1741593196499,0.03,128.22,128.21,23.09282587]
[1741593197208,0.03,128.22,128.2,15.29312587]
[1741593197393,0.03,128.22,128.18,15.29312587]
[1741593198024,0.14216157,128.18,128.14,23.09702587]
[1741593199092,7.94376157,128.18,128.14,15.29312587]
[1741593200411,0.14216157,128.18,128.14,23.81221088]
[1741593200791,0.14216157,128.18,128.14,31.61571088]
[1741593201510,23.81221088,128.2,128.14,31.61571088]
[1741593201695,0.14216157,128.19,128.15,23.81221088]
[1741593201892,0.14216157,128.19,128.16,23.81221088]
[1741593202588,0.14216157,128.19,128.17,23.81221088]
[1741593203216,0.14216157,128.19,128.16,31.61441088]
[1741593204105,0.14216157,128.19,128.16,7.8022]
[1741593204924,0.14216157,128.19,128.16,31.61441088]
[1741593205800,0.14216157,128.2,128.17,23.81221088]
[1741593206916,82.4,128.21,128.17,23.81221088]
[1741593207123,82.4,128.21,128.18,7.8015]
[1741593207491,82.4,128.21,128.17,31.61411088]
[1741593208290,0.14216157,128.21,128.18,23.81221088]
[1741593208807,0.03,128.22,128.19,23.81221088]
[1741593209305,0.03,128.22,128.19,31.61261088]
[1741593209912,0.03,128.22,128.19,7.8004]
[1741593213611,0.03,128.22,128.19,7.8634]
[1741593214618,0.03,128.22,128.19,31.67561088]
[1741593214913,0.03,128.22,128.19,51.17791088]
[1741593215119,0.03,128.22,128.19,0.063]
[1741593215328,0.03,128.22,128.2,31.61231088]
[1741593216533,0.03,128.22,128.21,42.46185974]
[1741593216732,0.03,128.22,128.21,23.81221088]
[1741593217323,0.03,128.22,128.21,31.61191088]
[1741593217538,0.03,128.22,128.21,50.26155974]
[1741593218639,0.03,128.22,128.21,7.7997]
[1741593218935,0.03,128.22,128.21,31.61191088]
[1741593219115,0.03,128.22,128.21,50.26155974]
[1741593220219,0.03,128.22,128.21,204.67155974]
[1741593221532,0.03,128.22,128.21,186.02191088]
[1741593222208,0.14216157,128.27,128.21,215.57585563]
[1741593222409,0.14216157,128.27,128.24,15.21730677]
[1741593222833,6.6318,128.29,128.24,15.21730677]
[1741593223035,0.14216157,128.29,128.25,15.21730677]
[1741593223739,0.14216157,128.29,128.26,23.01390677]
[1741593224419,0.14216157,128.29,128.26,7.7966]
[1741593225337,0.03,128.27,128.26,7.7966]
[1741593225638,0.03,128.27,128.26,23.01390677]
[1741593229946,0.03,128.27,128.25,7.797]
[1741593231845,0.03,128.27,128.25,15.21730677]
[1741593232832,0.03,128.27,128.26,15.21730677]
[1741593233948,0.03,128.27,128.26,23.01390677]
[1741593244455,0.14216157,128.32,128.26,61.15515563]
[1741593244637,0.14216157,128.32,128.28,15.21730677]
[1741593244835,0.28432314,128.34,128.28,15.21730677]
[1741593245036,0.28432314,128.34,128.3,15.21730677]
[1741593245539,0.28432314,128.34,128.29,15.21730677]
[1741593245739,0.14216157,128.34,128.31,15.21730677]
[1741593245945,0.14216157,128.34,128.3,15.21730677]
[1741593247860,0.14216157,128.34,128.31,7.7936]
[1741593249159,0.03,128.32,128.31,7.7936]
[1741593250547,0.03,128.32,128.31,15.21730677]
[1741593251357,0.03,128.32,128.31,22.01730677]
[1741593251655,0.03,128.35,128.34,15.21730677]
[1741593252036,0.03,128.35,128.33,15.21730677]
[1741593252237,0.03,128.35,128.34,15.21730677]
[1741593252648,0.03,128.35,128.34,23.00910677]
[1741593261763,0.03,128.35,128.34,7.7918]
[1741593261950,0.03,128.35,128.34,23.00910677]
[1741593263544,0.03,128.35,128.34,7.7918]
[1741593263954,0.03,128.35,128.34,23.00910677]
[1741593265370,0.03,128.35,128.32,7.793]
[1741593265569,0.03,128.35,128.34,15.21730677]
[1741593265876,0.03,128.35,128.32,23.01030677]
[1741593267466,0.03,128.35,128.33,23.00910677]
[1741593268951,0.03,128.35,128.33,7.7918]
[1741593269177,0.03,128.35,128.33,23.00910677]
[1741593271173,0.03,128.35,128.34,20.0]
[1741593271677,0.28432314,128.34,128.29,7.7948]
[1741593271865,0.14216157,128.32,128.28,15.21730677]
[1741593272071,15.35946834,128.32,128.28,7.7952]
[1741593272579,15.35946834,128.32,128.31,0.063]
[1741593272877,0.14216157,128.32,128.31,0.063]
[1741593273894,15.50162991,128.34,128.31,0.063]
[1741593274291,0.14216157,128.34,128.31,15.28030677]
[1741593274455,0.14216157,128.34,128.31,0.063]
[1741593275060,0.14216157,128.34,128.31,7.8566]
[1741593275259,0.14216157,128.34,128.31,0.063]
[1741593278395,0.14216157,128.34,128.31,0.063]
[1741593278687,15.24730677,128.35,128.31,15.28030677]
[1741593278688,0.03,128.35,128.31,15.28030677]
[1741593279066,0.03,128.35,128.32,15.21730677]
[1741593279781,0.03,128.35,128.33,7.7924]
[1741593283864,0.03,128.35,128.33,23.00970677]
[1741593284063,0.03,128.35,128.33,7.7924]
[1741593286181,0.17216157,128.35,128.33,7.7924]
[1741593286382,0.17216157,128.35,128.31,34.76320677]
[1741593286383,0.17216157,128.35,128.32,7.7928]
[1741593294885,0.14216157,128.34,128.31,0.063]
[1741593295088,15.35946834,128.34,128.31,7.8564]
[1741593295287,15.24730677,128.35,128.31,7.8564]
[1741593295592,0.17216157,128.35,128.31,23.07370677]
[1741593295889,0.17216157,128.35,128.32,15.21730677]
[1741593297493,0.03,128.35,128.33,7.7924]
[1741593297868,0.03,128.35,128.33,23.00970677]
[1741593300896,0.03,128.35,128.33,7.7924]
[1741593301802,15.35946834,128.34,128.31,7.8563]
[1741593301985,0.14216157,128.34,128.31,7.8563]
[1741593303095,15.50162991,128.34,128.31,0.063]
[1741593303297,0.14216157,128.32,128.31,0.063]
[1741593304096,15.50162991,128.32,128.31,0.063]
[1741593304400,34.15127877,128.32,128.31,0.063]
[1741593305076,15.50162991,128.32,128.31,0.063]
[1741593312990,23.29462991,128.32,128.31,0.063]
[1741593313401,15.50162991,128.32,128.31,0.063]
[1741593315488,0.14216157,128.32,128.31,0.063]
[1741593316609,0.03,128.35,128.31,15.28030677]
[1741593316800,0.03,128.35,128.32,15.21730677]
[1741593316993,0.03,128.35,128.31,15.28030677]
[1741593317510,0.03,128.35,128.31,0.063]
[1741593317695,15.24730677,128.35,128.31,0.063]
[1741593319404,0.03,128.35,128.31,15.28030677]
[1741593319608,0.17216157,128.35,128.32,15.21730677]
[1741593320511,0.17216157,128.35,128.31,15.28030677]
[1741593321106,0.31432314,128.35,128.31,15.28030677]
[1741593321298,15.53162991,128.35,128.31,0.063]
[1741593322206,0.17216157,128.35,128.31,0.063]
[1741593323310,15.38946834,128.35,128.31,0.063]
[1741593323532,0.14216157,128.33,128.31,0.063]
[1741593323705,0.14216157,128.32,128.31,0.063]
[1741593324909,0.28432314,128.32,128.31,0.063]
[1741593325109,15.50162991,128.32,128.31,0.063]
[1741593325919,0.28432314,128.32,128.31,0.063]
[1741593326100,15.50162991,128.32,128.31,0.063]
[1741593326616,0.28432314,128.32,128.31,0.063]
[1741593327225,15.50162991,128.32,128.31,0.063]
[1741593327921,0.28432314,128.32,128.31,0.063]
[1741593328308,0.14216157,128.32,128.31,0.063]
[1741593329506,15.50162991,128.32,128.31,0.063]
[1741593330425,0.14216157,128.32,128.31,0.063]
[1741593330603,0.31432314,128.32,128.31,0.063]
[1741593331323,0.17216157,128.32,128.31,0.063]
[1741593331524,0.17216157,128.32,128.31,312.063]
[1741593332228,23.32462991,128.32,128.31,312.063]
[1741593332612,41.97427877,128.32,128.31,312.063]
[1741593334327,15.53162991,128.32,128.31,312.063]
[1741593337543,0.31432314,128.32,128.31,312.063]
[1741593338137,15.53162991,128.32,128.31,312.063]
[1741593338912,0.31432314,128.32,128.31,312.063]
[1741593343764,8.10732314,128.32,128.31,312.063]
[1741593344168,23.32462991,128.32,128.31,312.063]
[1741593344335,15.53162991,128.32,128.31,312.063]
[1741593345138,0.31432314,128.32,128.31,312.063]
[1741593352657,0.17216157,128.32,128.31,312.063]
[1741593353936,0.17216157,128.32,128.31,319.8566]
[1741593355459,0.17216157,128.32,128.31,335.07390677]
[1741593355641,0.17216157,128.32,128.31,319.8566]
[1741593356564,0.17216157,128.32,128.31,335.07390677]
[1741593357863,0.17216157,128.32,128.31,319.8566]
[1741593358863,0.03,128.32,128.31,319.8566]
[1741593360663,0.03,128.32,128.31,335.07390677]
[1741593363655,0.03,128.32,128.31,312.063]
[1741593367190,0.03,128.32,128.31,319.8566]
[1741593367671,0.03,128.32,128.31,312.063]
[1741593367672,15.53162991,128.32,128.31,312.063]
[1741593367869,15.38946834,128.32,128.31,312.063]
[1741593369158,0.17216157,128.32,128.31,312.063]
[1741593373680,0.17216157,128.32,128.31,319.8566]
[1741593374080,0.17216157,128.32,128.31,312.063]
[1741593379089,7.96516157,128.32,128.31,312.063]
[1741593379282,0.17216157,128.32,128.31,312.063]
[1741593382492,23.32462991,128.32,128.31,312.063]
[1741593382691,41.97427877,128.32,128.31,0.063]
[1741593382996,43.56627877,128.32,128.31,0.0001]
[1741593383311,43.56627877,128.32,128.24,73.0]
[1741593383312,20.28432314,128.28,128.23,1.6559]
[1741593383467,15.50162991,128.26,128.23,1.6559]
[1741593384975,15.50162991,128.26,128.22,0.063]
[1741593385599,15.50162991,128.26,128.23,312.0]
[1741593386183,1.95521948,128.25,128.23,312.0]
[1741593386393,0.14216157,128.24,128.23,312.0]
[1741593387793,2.09738105,128.24,128.23,312.0]
[1741593389489,2.09738105,128.24,128.23,319.7984]
[1741593389974,2.09738105,128.24,128.23,312.0]
[1741593390589,2.09738105,128.24,128.23,319.7984]
[1741593391318,2.09738105,128.24,128.23,7.7984]
[1741593391489,0.14216157,128.22,128.19,0.063]
[1741593391678,15.50162991,128.2,128.19,0.063]
[1741593392607,17.45684939,128.2,128.19,0.063]
[1741593393188,25.25714939,128.2,128.19,0.063]
[1741593395198,17.45684939,128.2,128.19,0.063]
[1741593396413,17.45684939,128.2,128.18,0.063]
[1741593396414,18.933972,128.19,128.18,0.063]
[1741593396591,97.90162991,128.19,128.18,0.063]
[1741593396787,82.68432314,128.19,128.18,0.063]
[1741593397398,84.63954262,128.19,128.18,0.063]
[1741593398104,2.23954262,128.19,128.18,0.063]
[1741593398612,0.28432314,128.19,128.18,0.063]
[1741593399310,0.14216157,128.19,128.18,0.063]
[1741593402285,15.21730677,128.21,128.18,0.063]
[1741593402497,0.14216157,128.21,128.18,0.063]
[1741593402691,0.14216157,128.21,128.19,15.21730677]
[1741593402896,0.14216157,128.23,128.2,15.21730677]
[1741593403105,0.28432314,128.24,128.2,15.21730677]
[1741593403307,15.50162991,128.24,128.19,15.21730677]
[1741593403512,15.50162991,128.24,128.2,312.0]
[1741593404306,23.29952991,128.24,128.2,312.0]
[1741593404903,15.35946834,128.21,128.2,312.0]
[1741593405110,15.50162991,128.21,128.18,0.063]
[1741593406523,0.28432314,128.2,128.18,0.063]
[1741593406710,15.50162991,128.2,128.18,0.063]
[1741593408297,116.55127877,128.19,128.18,0.063]
[1741593408929,124.35217877,128.19,128.18,0.063]
[1741593410536,131.15217877,128.19,128.18,0.063]
[1741593410833,48.75217877,128.19,128.18,0.063]
[1741593411328,20.28432314,128.15,128.1,9.4282]
[1741593411635,0.28432314,128.13,128.11,312.0]
[1741593411816,0.14216157,128.13,128.11,312.0]
[1741593412144,117.75946834,128.15,128.11,312.0]
[1741593412145,0.14216157,128.14,128.11,312.0]
[1741593412828,0.14216157,128.14,128.11,319.8057]
[1741593413836,0.14216157,128.14,128.12,15.21730677]
[1741593414133,82.4,128.15,128.13,15.21730677]
[1741593414338,0.28432314,128.18,128.13,15.21730677]
[1741593414631,15.50162991,128.18,128.11,27.3201]
[1741593414835,15.21730677,128.17,128.13,7.8045]
[1741593415012,0.28432314,128.18,128.14,15.21730677]
[1741593415215,0.28432314,128.18,128.15,15.21730677]
[1741593415536,0.14216157,128.19,128.15,15.21730677]
[1741593415724,0.28432314,128.19,128.15,15.21730677]
[1741593416840,0.28432314,128.19,128.16,7.8027]
[1741593419463,0.28432314,128.19,128.15,7.8033]
[1741593420559,0.28432314,128.19,128.15,9.3049]
[1741593420770,0.14216157,128.19,128.15,44.03050677]
[1741593421048,0.03,128.21,128.17,15.21730677]
[1741593421431,0.17216157,128.21,128.18,7.8015]
[1741593421752,15.21730677,128.19,128.16,7.8027]
[1741593422339,0.14216157,128.2,128.16,335.02000677]
[1741593422551,0.14216157,128.2,128.17,15.21730677]
[1741593423144,0.17216157,128.21,128.19,15.21730677]
[1741593423339,0.17216157,128.21,128.19,7.8009]
[1741593423546,0.17216157,128.21,128.18,7.8012]
[1741593423735,0.31432314,128.21,128.17,7.8018]
[1741593423935,15.53162991,128.21,128.17,7.8018]
[1741593424264,0.31432314,128.21,128.17,7.8018]
[1741593424439,0.31432314,128.21,128.17,23.01910677]
[1741593426358,0.17216157,128.21,128.18,15.21730677]
[1741593427058,0.17216157,128.21,128.17,335.01910677]
[1741593429256,0.17216157,128.21,128.17,23.01910677]
[1741593430755,0.17216157,128.21,128.18,15.21730677]
[1741593430971,0.03,128.21,128.2,15.21730677]
[1741593431361,0.03,128.21,128.19,15.21730677]
[1741593432239,0.03,128.21,128.2,312.0]
[1741593432450,0.03,128.21,128.2,319.8003]
[1741593435271,0.03,128.21,128.17,92.5053]
[1741593435272,0.03,128.21,128.18,23.01850677]
[1741593435570,0.03,128.21,128.18,7.8012]
[1741593435879,0.03,128.21,128.16,0.063]
[1741593435880,0.14216157,128.18,128.16,0.063]
[1741593436053,15.50162991,128.18,128.16,0.063]
[1741593436254,23.30312991,128.18,128.16,0.063]
[1741593436573,20.28432314,128.17,128.16,0.063]
[1741593437367,20.14216157,128.17,128.16,0.063]
[1741593437576,0.14216157,128.17,128.16,0.063]
[1741593438474,0.14216157,128.17,128.16,7.8657]
[1741593438777,0.14216157,128.17,128.16,0.063]
[1741593440972,35.50162991,128.17,128.16,0.063]
[1741593441575,43.30372991,128.17,128.16,0.063]
[1741593442580,35.50162991,128.17,128.16,0.063]
[1741593443375,20.14216157,128.17,128.16,0.063]
[1741593452090,0.14216157,128.17,128.16,0.063]
[1741593455286,23.16156834,128.17,128.16,0.063]
[1741593455788,41.95337877,128.17,128.16,0.063]
[1741593456789,15.50162991,128.17,128.16,0.063]
[1741593456990,0.28432314,128.17,128.16,0.063]
[1741593457890,0.14216157,128.17,128.16,0.063]
[1741593458089,20.14216157,128.17,128.16,0.063]
[1741593458680,35.50162991,128.17,128.16,0.063]
[1741593458994,43.30372991,128.17,128.16,0.063]
[1741593460985,35.50162991,128.17,128.16,0.063]
[1741593462790,23.30372991,128.17,128.16,0.063]
[1741593463795,15.50162991,128.17,128.16,0.063]
[1741593465099,0.28432314,128.17,128.16,0.063]
[1741593468192,0.14216157,128.17,128.16,0.063]
[1741593470105,0.03,128.18,128.16,0.063]
[1741593473205,0.03,128.18,128.17,15.21730677]
[1741593475281,0.03,128.18,128.17,29.53080677]
[1741593475487,0.03,128.18,128.17,183.94080677]
[1741593475711,0.03,128.21,128.17,183.94080677]
[1741593475890,0.03,128.21,128.2,15.21730677]
[1741593476584,0.03,128.21,128.2,16.79070677]
[1741593476791,0.14216157,128.25,128.2,16.79070677]
[1741593477091,0.14216157,128.25,128.24,15.21730677]
[1741593477297,0.14216157,128.25,128.23,15.21730677]
[1741593479612,0.28432314,128.27,128.23,15.21730677]
[1741593480311,0.28432314,128.27,128.23,23.78069782]
[1741593480708,8.08032314,128.27,128.23,23.78069782]
[1741593481219,0.14216157,128.27,128.23,23.78069782]
[1741593481796,0.14216157,128.27,128.23,31.57899782]
[1741593481997,0.14216157,128.28,128.23,31.57899782]
[1741593482606,0.14216157,128.28,128.24,23.78069782]
[1741593483006,0.03,128.27,128.24,23.78069782]
[1741593483205,0.03,128.27,128.24,31.57819782]
[1741593484902,0.03,128.27,128.25,23.78069782]
[1741593485097,0.03,128.27,128.26,31.57729782]
[1741593486515,0.03,128.27,128.25,33.22319782]
[1741593486713,0.03,128.27,128.26,23.78069782]
[1741593487114,0.03,128.27,128.25,33.22319782]
[1741593487402,0.03,128.27,128.26,23.78069782]
[1741593488210,0.03,128.27,128.26,31.57729782]
[1741593492219,0.03,128.27,128.26,37.78499782]
[1741593492937,0.03,128.31,128.26,75.92624668]
[1741593493238,0.03,128.31,128.3,23.78069782]
[1741593493915,0.03,128.31,128.28,154.41]
[1741593493916,0.03,128.31,128.28,178.19069782]
[1741593495120,0.17216157,128.31,128.28,178.19069782]
[1741593495614,0.31432314,128.31,128.27,32.20449782]
[1741593496038,0.17216157,128.31,128.27,32.20449782]
[1741593496743,0.31432314,128.31,128.27,32.20449782]
[1741593496908,0.31432314,128.31,128.27,40.00029782]
[1741593497108,0.31432314,128.31,128.27,32.20449782]
[1741593497311,0.31432314,128.31,128.27,40.00039782]
[1741593497511,0.17216157,128.31,128.27,40.00039782]
[1741593497712,0.17216157,128.31,128.28,23.78069782]
[1741593497937,0.03,128.31,128.28,23.78069782]
[1741593498632,0.03,128.31,128.3,23.78069782]
[1741593499533,0.03,128.31,128.3,31.57489782]
[1741593502340,0.03,128.31,128.3,22.99260647]
[1741593502517,0.0001,128.31,128.3,196.05225533]
[1741593502722,0.0001,128.31,128.3,197.64525533]
[1741593504426,0.0001,128.31,128.3,206.18980718]
[1741593504839,0.0001,128.31,128.3,518.18980718]
[1741593505159,0.0001,128.31,128.3,499.54015832]
[1741593507822,0.0001,128.31,128.3,187.54015832]
[1741593510931,0.0001,128.31,128.3,499.54015832]
[1741593511125,0.03,128.34,128.3,499.54015832]
[1741593511353,0.03,128.34,128.33,23.74295832]
[1741593512652,0.03,128.34,128.33,31.53535832]
[1741593516328,0.03,128.34,128.33,50.18500718]
[1741593516948,0.03,128.34,128.33,204.59500718]
[1741593517454,0.03,128.34,128.33,516.59500718]
[1741593520044,0.0001,128.34,128.33,540.3379655]
[1741593520249,0.0001,128.35,128.34,20.25484886]
[1741593520431,0.0001,128.35,128.34,67.7407655]
[1741593522353,0.0001,128.35,128.34,75.5325655]
[1741593523230,0.0001,128.35,128.34,541.9425655]
[1741593524951,0.0001,128.35,128.34,187.54995832]
[1741593526266,0.0001,128.35,128.34,258.38247291]
[1741593527044,0.0001,128.35,128.34,443.98247291]
[1741593528044,0.0001,128.35,128.34,755.98247291]
[1741593528432,0.0001,128.35,128.34,756.12463448]
[1741593528632,0.03,128.37,128.36,38.64964886]
[1741593528854,0.03,128.37,128.36,215.02481367]
[1741593529030,0.03,128.37,128.36,222.81531367]
[1741593529438,0.03,128.37,128.36,204.16566481]
[1741593531963,0.03,128.37,128.36,534.81531367]
[1741593534461,0.03,128.37,128.36,516.16566481]
[1741593534667,0.03,128.37,128.36,188.9805]
[1741593534843,0.03,128.37,128.36,204.16566481]
[1741593537546,0.03,128.37,128.36,516.16566481]
[1741593538174,0.03,128.37,128.36,204.16566481]
[1741593539478,0.03,128.37,128.36,207.98019936]
[1741593541080,0.03,128.37,128.36,519.98019936]
[1741593541884,0.03,128.37,128.36,207.98019936]
[1741593543069,0.03,128.37,128.36,96.59516481]
[1741593543276,0.03,128.37,128.36,81.41]
[1741593543570,0.03,128.37,128.36,96.59516481]
[1741593543783,0.03,128.37,128.36,104.38566481]
[1741593544878,0.03,128.37,128.36,416.38566481]
[1741593547063,0.03,128.37,128.36,489.38566481]
[1741593547476,0.03,128.37,128.36,508.03531367]
[1741593550089,0.03,128.37,128.36,489.38566481]
[1741593552385,0.03,128.37,128.36,104.38566481]
[1741593552991,0.03,128.37,128.36,89.2005]
[1741593553200,0.03,128.37,128.36,104.38566481]
[1741593553591,0.03,128.37,128.36,96.59516481]
[1741593555924,0.03,128.37,128.36,15.18516481]
[1741593556414,0.03,128.37,128.35,15.24816481]
[1741593556718,0.03,128.37,128.35,0.063]
[1741593557917,0.03,128.37,128.36,15.18516481]
[1741593558710,0.03,128.37,128.35,0.063]
[1741593559026,0.03,128.37,128.36,15.18516481]
[1741593560627,0.03,128.37,128.36,177.38566481]
[1741593562824,0.03,128.37,128.36,184.16566481]
[1741593563614,0.0001,128.37,128.36,202.81531367]
[1741593563924,0.0001,128.37,128.36,516.43501367]
[1741593566321,2.7101072,128.39,128.37,81.4099]
[1741593566493,2.7101072,128.39,128.38,33.83481367]
[1741593568034,2.7101072,128.39,128.38,41.62411367]
[1741593569549,2.7101072,128.39,128.38,353.62411367]
[1741593570556,2.7101072,128.39,128.38,334.97446481]
[1741593570923,2.7101072,128.39,128.38,489.38436481]
[1741593571741,2.7101072,128.39,128.38,169.59506481]
[1741593573650,2.7101072,128.39,128.38,15.18516481]
[1741593573945,2.7101072,128.39,128.37,15.18516481]
[1741593574322,0.28432314,128.38,128.35,0.063]
[1741593574848,0.14216157,128.38,128.35,15.24816481]
[1741593575141,0.14216157,128.38,128.36,15.18516481]
[1741593575334,2.7101072,128.39,128.37,15.18516481]
[1741593575536,2.7101072,128.39,128.38,15.18516481]
[1741593577224,2.7101072,128.39,128.38,22.97446481]
[1741593578352,2.7101072,128.39,128.38,334.97446481]
[1741593579843,2.7101072,128.39,128.38,489.38436481]
[1741593583949,7.2e-06,128.39,128.38,508.17617524]
[1741593584250,0.14216157,128.45,128.41,20.0]
[1741593584545,0.14216157,128.45,128.44,15.18516481]
[1741593585127,0.14216157,128.46,128.44,15.18516481]
[1741593585536,12.23696731,128.47,128.45,15.18516481]
[1741593585741,12.23696731,128.47,128.46,15.18516481]
[1741593585933,12.23696731,128.47,128.46,22.96966481]
[1741593586660,0.03,128.47,128.46,22.96966481]
[1741593588558,0.03,128.47,128.45,15.18516481]
[1741593590537,0.03,128.47,128.43,154.4099]
[1741593590738,0.03,128.47,128.43,169.59506481]
[1741593590944,0.03,128.47,128.44,15.18516481]
[1741593598966,0.03,128.47,128.44,22.97056481]
[1741593599863,0.03,128.47,128.44,15.18516481]
[1741593600368,0.03,128.47,128.46,15.18516481]
[1741593600562,0.03,128.47,128.44,7.7853]
[1741593600774,0.03,128.47,128.45,15.18516481]
[1741593602148,0.03,128.47,128.45,22.96986481]
[1741593602752,0.03,128.47,128.46,15.18516481]
[1741593603461,0.03,128.47,128.45,22.96986481]
[1741593603644,0.03,128.47,128.45,7.7847]
[1741593603848,0.03,128.47,128.46,15.18516481]
[1741593604054,0.03,128.47,128.46,22.96966481]
[1741593604855,0.03,128.47,128.46,98.51732405]
[1741593605157,0.03,128.47,128.46,252.92722405]
[1741593605362,0.03,128.5,128.49,15.18516481]
[1741593606365,0.03,128.5,128.49,22.96786481]
[1741593606574,0.03,128.5,128.48,15.18516481]
[1741593606762,0.03,128.5,128.47,15.18516481]
[1741593607070,0.14216157,128.48,128.42,173.8771]
[1741593607273,0.14216157,128.47,128.43,15.18516481]
[1741593607478,0.14216157,128.49,128.46,15.18516481]
[1741593607650,0.03,128.5,128.49,20.0]
[1741593607852,0.03,128.5,128.49,101.4099]
[1741593608359,0.03,128.5,128.49,197.37776481]
[1741593609379,0.03,128.5,128.49,189.59506481]
[1741593609671,0.03,128.5,128.49,197.37776481]
[1741593611971,0.03,128.5,128.49,189.59506481]
[1741593612177,0.03,128.5,128.46,15.18516481]
[1741593612473,15.21516481,128.5,128.45,96.59506481]
[1741593612679,0.03,128.5,128.49,15.18516481]
[1741593613055,0.03,128.5,128.48,174.4099]
[1741593613252,0.03,128.5,128.47,15.18516481]
[1741593613570,0.03,128.5,128.46,15.18516481]
[1741593613571,0.17216157,128.5,128.46,15.18516481]